Workbook

Sheet Регистър пропътувано разстояние
B1: РЕГИСТЪР ЗА ПРОПЪТУВАНО РАЗСТОЯНИЕ
C11: КОМАНДИРОВЪЧНИ | E11: ОБЩО
C12: КИЛОМЕТРИ | E12: КОМАНДИРОВКА
C17: 2012-05-01 | E17: 2012-05-10
C19: ПЕРИОД | E19: ПЕРИОД
C20: НАЧАЛО | E20: КРАЙ
C26: 54 | E26: 9,800
C28: КОМАНДИРОВКА | E28: ПРЕДИШНО ГОРИВО
C29: ?/км | E29: ОДОМЕТЪР

Sheet Данни в регистрационния файл
B1: РЕГИСТЪР ЗА ПРОПЪТУВАНО РАЗСТОЯНИЕ
B5: ДАТА | C5: ДЕЙНОСТ | D5: ОДОМ. 1 | E5: МЕСТОПОЛОЖЕНИЕ | F5: ОДОМ. 2 | G5: МЕСТОПОЛОЖЕНИЕ | H5: КОМАНДИРОВКА | I5: ЛИТРИ | J5: РАЗХОДИ | K5: КИЛОМЕТРИ | L5: ''л/100 км'' | M5: ¢/км | N5: ЗАБЕЛЕЖКИ
B6: 2012-05-01 | C6: Пътуване | D6: 10,123 | E6: ул Т. Каблешков – Солунска | F6: 10,130 | I6: 15.56 | J6: 64.11 лв. | K6: =километри -> 7 | L6: =IF(OR(LEN(данни[[#This Row],[ОДОМ. 2]]),данни[[#This Row],[ОДОМ. 1]]=""),"",IFERROR(данни[[#This Row],[КИЛОМЕТРИ]]/данни[[#This Row],[ЛИТРИ]],"")) ->  | M6: =IF(данни[[#This Row],[''''л/100 км'''']]="","",100*данни[[#This Row],[РАЗХОДИ]]/данни[[#This Row],[КИЛОМЕТРИ]]) -> 
B7: 2012-05-01 | C7: Пътуване | D7: 10,130 | E7: Офис | F7: 10,200 | G7: Ул. Череша | H7: Да | K7: =километри -> 70 | L7: =IF(OR(LEN(данни[[#This Row],[ОДОМ. 2]]),данни[[#This Row],[ОДОМ. 1]]=""),"",IFERROR(данни[[#This Row],[КИЛОМЕТРИ]]/данни[[#This Row],[ЛИТРИ]],"")) ->  | M7: =IF(данни[[#This Row],[''''л/100 км'''']]="","",100*данни[[#This Row],[РАЗХОДИ]]/данни[[#This Row],[КИЛОМЕТРИ]]) -> 
B8: 2012-05-01 | C8: Пътуване | D8: 10,200 | E8: Перник | F8: 10,285 | G8: Офис | H8: Да | K8: =километри -> 85 | L8: =IF(OR(LEN(данни[[#This Row],[ОДОМ. 2]]),данни[[#This Row],[ОДОМ. 1]]=""),"",IFERROR(данни[[#This Row],[КИЛОМЕТРИ]]/данни[[#This Row],[ЛИТРИ]],"")) ->  | M8: =IF(данни[[#This Row],[''''л/100 км'''']]="","",100*данни[[#This Row],[РАЗХОДИ]]/данни[[#This Row],[КИЛОМЕТРИ]]) -> 
B9: 2012-05-02 | C9: Пътуване | D9: 10,285 | E9: Офис | F9: 10,450 | G9: Colo Vineyard | H9: Да | K9: =километри -> 165 | L9: =IF(OR(LEN(данни[[#This Row],[ОДОМ. 2]]),данни[[#This Row],[ОДОМ. 1]]=""),"",IFERROR(данни[[#This Row],[КИЛОМЕТРИ]]/данни[[#This Row],[ЛИТРИ]],"")) ->  | M9: =IF(данни[[#This Row],[''''л/100 км'''']]="","",100*данни[[#This Row],[РАЗХОДИ]]/данни[[#This Row],[КИЛОМЕТРИ]]) -> 
B10: 2012-05-02 | C10: Гориво | D10: 10,450 | E10: Shell | I10: 11.20 | J10: 55.42 лв. | K10: =километри -> 650 | L10: =IF(OR(LEN(данни[[#This Row],[ОДОМ. 2]]),данни[[#This Row],[ОДОМ. 1]]=""),"",IFERROR(данни[[#This Row],[КИЛОМЕТРИ]]/данни[[#This Row],[ЛИТРИ]],"")) -> 58.0 | M10: =IF(данни[[#This Row],[''''л/100 км'''']]="","",100*данни[[#This Row],[РАЗХОДИ]]/данни[[#This Row],[КИЛОМЕТРИ]]) -> 8.5
B11: 2012-05-02 | C11: Пътуване | D11: 10,500 | E11: Colo Vineyard | F11: 10,518 | G11: Офис | H11: Да | K11: =километри -> 18 | L11: =IF(OR(LEN(данни[[#This Row],[ОДОМ. 2]]),данни[[#This Row],[ОДОМ. 1]]=""),"",IFERROR(данни[[#This Row],[КИЛОМЕТРИ]]/данни[[#This Row],[ЛИТРИ]],"")) ->  | M11: =IF(данни[[#This Row],[''''л/100 км'''']]="","",100*данни[[#This Row],[РАЗХОДИ]]/данни[[#This Row],[КИЛОМЕТРИ]]) -> 
B12: 2012-05-03 | C12: Пътуване | D12: 10,518 | E12: Офис | F12: 10,745 | G12: Офис | H12: Да | K12: =километри -> 227 | L12: =IF(OR(LEN(данни[[#This Row],[ОДОМ. 2]]),данни[[#This Row],[ОДОМ. 1]]=""),"",IFERROR(данни[[#This Row],[КИЛОМЕТРИ]]/данни[[#This Row],[ЛИТРИ]],"")) ->  | M12: =IF(данни[[#This Row],[''''л/100 км'''']]="","",100*данни[[#This Row],[РАЗХОДИ]]/данни[[#This Row],[КИЛОМЕТРИ]]) -> 
B13: 2012-05-04 | C13: Гориво | D13: 10,745 | E13: ул Т. Каблешков – Солунска | I13: 16.60 | J13: 69.24 лв. | K13: =километри -> 295 | L13: =IF(OR(LEN(данни[[#This Row],[ОДОМ. 2]]),данни[[#This Row],[ОДОМ. 1]]=""),"",IFERROR(данни[[#This Row],[КИЛОМЕТРИ]]/данни[[#This Row],[ЛИТРИ]],"")) -> 17.8 | M13: =IF(данни[[#This Row],[''''л/100 км'''']]="","",100*данни[[#This Row],[РАЗХОДИ]]/данни[[#This Row],[КИЛОМЕТРИ]]) -> 23.5
B14: 2012-05-04 | C14: Пътуване | D14: 10,745 | E14: Офис | F14: 10,800 | G14: Търговище | H14: Да | K14: =километри -> 55 | L14: =IF(OR(LEN(данни[[#This Row],[ОДОМ. 2]]),данни[[#This Row],[ОДОМ. 1]]=""),"",IFERROR(данни[[#This Row],[КИЛОМЕТРИ]]/данни[[#This Row],[ЛИТРИ]],"")) ->  | M14: =IF(данни[[#This Row],[''''л/100 км'''']]="","",100*данни[[#This Row],[РАЗХОДИ]]/данни[[#This Row],[КИЛОМЕТРИ]]) -> 
B15: 2012-05-04 | C15: Пътуване | D15: 10,800 | E15: Търговище | F15: 10,875 | G15: Офис | H15: Да | K15: =километри -> 75 | L15: =IF(OR(LEN(данни[[#This Row],[ОДОМ. 2]]),данни[[#This Row],[ОДОМ. 1]]=""),"",IFERROR(данни[[#This Row],[КИЛОМЕТРИ]]/данни[[#This Row],[ЛИТРИ]],"")) ->  | M15: =IF(данни[[#This Row],[''''л/100 км'''']]="","",100*данни[[#This Row],[РАЗХОДИ]]/данни[[#This Row],[КИЛОМЕТРИ]]) -> 
B16: 2012-05-07 | C16: Пътуване | D16: 10,875 | E16: Офис | F16: 10,921 | G16: Ул. Череша | H16: Да | K16: =километри -> 46 | L16: =IF(OR(LEN(данни[[#This Row],[ОДОМ. 2]]),данни[[#This Row],[ОДОМ. 1]]=""),"",IFERROR(данни[[#This Row],[КИЛОМЕТРИ]]/данни[[#This Row],[ЛИТРИ]],"")) ->  | M16: =IF(данни[[#This Row],[''''л/100 км'''']]="","",100*данни[[#This Row],[РАЗХОДИ]]/данни[[#This Row],[КИЛОМЕТРИ]]) -> 
B17: 2012-05-07 | C17: Пътуване | D17: 10,921 | E17: Перник | F17: 10,969 | G17: Офис | H17: Да | K17: =километри -> 48 | L17: =IF(OR(LEN(данни[[#This Row],[ОДОМ. 2]]),данни[[#This Row],[ОДОМ. 1]]=""),"",IFERROR(данни[[#This Row],[КИЛОМЕТРИ]]/данни[[#This Row],[ЛИТРИ]],"")) ->  | M17: =IF(данни[[#This Row],[''''л/100 км'''']]="","",100*данни[[#This Row],[РАЗХОДИ]]/данни[[#This Row],[КИЛОМЕТРИ]]) -> 
B18: 2012-05-09 | C18: Пътуване | D18: 10,969 | E18: Офис | F18: 11,000 | G18: Враца | H18: Да | K18: =километри -> 31 | L18: =IF(OR(LEN(данни[[#This Row],[ОДОМ. 2]]),данни[[#This Row],[ОДОМ. 1]]=""),"",IFERROR(данни[[#This Row],[КИЛОМЕТРИ]]/данни[[#This Row],[ЛИТРИ]],"")) ->  | M18: =IF(данни[[#This Row],[''''л/100 км'''']]="","",100*данни[[#This Row],[РАЗХОДИ]]/данни[[#This Row],[КИЛОМЕТРИ]]) -> 
B19: 2012-05-09 | C19: Пътуване | D19: 11,000 | E19: Враца | F19: 11,100 | G19: Вкъщи | H19: Не | K19: =километри -> 100 | L19: =IF(OR(LEN(данни[[#This Row],[ОДОМ. 2]]),данни[[#This Row],[ОДОМ. 1]]=""),"",IFERROR(данни[[#This Row],[КИЛОМЕТРИ]]/данни[[#This Row],[ЛИТРИ]],"")) ->  | M19: =IF(данни[[#This Row],[''''л/100 км'''']]="","",100*данни[[#This Row],[РАЗХОДИ]]/данни[[#This Row],[КИЛОМЕТРИ]]) -> 

Sheet изчисления (hidden)
A1: *** Този лист трябва да остане скрит ***
I6: =OFFSET(I9,,Втораос="Разход на гориво") -> ?/км
M7: 2
H8: Пътуване | I8: Гориво | J8: Гориво | L8: Втора ос: | M8: =REPT("''л/100 км''",M7=1)&REPT("Разход на гориво",M7=2) -> Разход на гориво
H9: Пропътувано разстояние | I9: ''л/100 км'' | J9: ?/км
C10: Отчетени към командировката километри: | D10: =SUMIFS(данни[КИЛОМЕТРИ],данни[КОМАНДИРОВКА],"Да",данни[ДАТА],">="&Началонапериода,данни[ДАТА],"<="&Крайнапериода) -> 820 | F10: 1 | G10: =Началонапериода -> 2012-05-01 | H10: =SUMIFS(данни[КИЛОМЕТРИ],данни[ДАТА],G10,данни[ДЕЙНОСТ],$H$8) -> 162 | I10: =IFERROR(AVERAGEIFS(данни[''''л/100 км''''],данни[ДАТА],G10,данни[ДЕЙНОСТ],$I$8),NA()) ->  | J10: =IFERROR(AVERAGEIFS(данни[¢/км],данни[ДАТА],G10,данни[ДЕЙНОСТ],$J$8),NA()) -> 
C11: Общо за командировката: | D11: =D10*Възстановяваненакилометър/100 -> 442.80 лв. | F11: 2 | G11: =G10+1 -> 2012-05-02 | H11: =SUMIFS(данни[КИЛОМЕТРИ],данни[ДАТА],G11,данни[ДЕЙНОСТ],$H$8) -> 183 | I11: =IFERROR(AVERAGEIFS(данни[''''л/100 км''''],данни[ДАТА],G11,данни[ДЕЙНОСТ],$I$8),NA()) -> 58.0 | J11: =IFERROR(AVERAGEIFS(данни[¢/км],данни[ДАТА],G11,данни[ДЕЙНОСТ],$J$8),NA()) -> 8.5
F12: 3 | G12: 2012-05-03 | H12: =SUMIFS(данни[КИЛОМЕТРИ],данни[ДАТА],G12,данни[ДЕЙНОСТ],$H$8) -> 227 | I12: =IFERROR(AVERAGEIFS(данни[''''л/100 км''''],данни[ДАТА],G12,данни[ДЕЙНОСТ],$I$8),NA()) ->  | J12: =IFERROR(AVERAGEIFS(данни[¢/км],данни[ДАТА],G12,данни[ДЕЙНОСТ],$J$8),NA()) -> 
F13: 4 | G13: 2012-05-04 | H13: =SUMIFS(данни[КИЛОМЕТРИ],данни[ДАТА],G13,данни[ДЕЙНОСТ],$H$8) -> 130 | I13: =IFERROR(AVERAGEIFS(данни[''''л/100 км''''],данни[ДАТА],G13,данни[ДЕЙНОСТ],$I$8),NA()) -> 17.8 | J13: =IFERROR(AVERAGEIFS(данни[¢/км],данни[ДАТА],G13,данни[ДЕЙНОСТ],$J$8),NA()) -> 23.5
F14: 5 | G14: 2012-05-05 | H14: =SUMIFS(данни[КИЛОМЕТРИ],данни[ДАТА],G14,данни[ДЕЙНОСТ],$H$8) -> 0 | I14: =IFERROR(AVERAGEIFS(данни[''''л/100 км''''],данни[ДАТА],G14,данни[ДЕЙНОСТ],$I$8),NA()) ->  | J14: =IFERROR(AVERAGEIFS(данни[¢/км],данни[ДАТА],G14,данни[ДЕЙНОСТ],$J$8),NA()) -> 
F15: 6 | G15: 2012-05-06 | H15: =SUMIFS(данни[КИЛОМЕТРИ],данни[ДАТА],G15,данни[ДЕЙНОСТ],$H$8) -> 0 | I15: =IFERROR(AVERAGEIFS(данни[''''л/100 км''''],данни[ДАТА],G15,данни[ДЕЙНОСТ],$I$8),NA()) ->  | J15: =IFERROR(AVERAGEIFS(данни[¢/км],данни[ДАТА],G15,данни[ДЕЙНОСТ],$J$8),NA()) -> 
F16: 7 | G16: 2012-05-07 | H16: =SUMIFS(данни[КИЛОМЕТРИ],данни[ДАТА],G16,данни[ДЕЙНОСТ],$H$8) -> 94 | I16: =IFERROR(AVERAGEIFS(данни[''''л/100 км''''],данни[ДАТА],G16,данни[ДЕЙНОСТ],$I$8),NA()) ->  | J16: =IFERROR(AVERAGEIFS(данни[¢/км],данни[ДАТА],G16,данни[ДЕЙНОСТ],$J$8),NA()) -> 
F17: 8 | G17: 2012-05-08 | H17: =SUMIFS(данни[КИЛОМЕТРИ],данни[ДАТА],G17,данни[ДЕЙНОСТ],$H$8) -> 0 | I17: =IFERROR(AVERAGEIFS(данни[''''л/100 км''''],данни[ДАТА],G17,данни[ДЕЙНОСТ],$I$8),NA()) ->  | J17: =IFERROR(AVERAGEIFS(данни[¢/км],данни[ДАТА],G17,данни[ДЕЙНОСТ],$J$8),NA()) -> 
F18: 9 | G18: 2012-05-09 | H18: =SUMIFS(данни[КИЛОМЕТРИ],данни[ДАТА],G18,данни[ДЕЙНОСТ],$H$8) -> 131 | I18: =IFERROR(AVERAGEIFS(данни[''''л/100 км''''],данни[ДАТА],G18,данни[ДЕЙНОСТ],$I$8),NA()) ->  | J18: =IFERROR(AVERAGEIFS(данни[¢/км],данни[ДАТА],G18,данни[ДЕЙНОСТ],$J$8),NA()) -> 
F19: 10 | G19: 2012-05-10 | H19: =SUMIFS(данни[КИЛОМЕТРИ],данни[ДАТА],G19,данни[ДЕЙНОСТ],$H$8) -> 0 | I19: =IFERROR(AVERAGEIFS(данни[''''л/100 км''''],данни[ДАТА],G19,данни[ДЕЙНОСТ],$I$8),NA()) ->  | J19: =IFERROR(AVERAGEIFS(данни[¢/км],данни[ДАТА],G19,данни[ДЕЙНОСТ],$J$8),NA()) -> 
F20: 11 | G20: 2012-05-11 | H20: =SUMIFS(данни[КИЛОМЕТРИ],данни[ДАТА],G20,данни[ДЕЙНОСТ],$H$8) -> 0 | I20: =IFERROR(AVERAGEIFS(данни[''''л/100 км''''],данни[ДАТА],G20,данни[ДЕЙНОСТ],$I$8),NA()) ->  | J20: =IFERROR(AVERAGEIFS(данни[¢/км],данни[ДАТА],G20,данни[ДЕЙНОСТ],$J$8),NA()) -> 
F21: 12 | G21: 2012-05-12 | H21: =SUMIFS(данни[КИЛОМЕТРИ],данни[ДАТА],G21,данни[ДЕЙНОСТ],$H$8) -> 0 | I21: =IFERROR(AVERAGEIFS(данни[''''л/100 км''''],данни[ДАТА],G21,данни[ДЕЙНОСТ],$I$8),NA()) ->  | J21: =IFERROR(AVERAGEIFS(данни[¢/км],данни[ДАТА],G21,данни[ДЕЙНОСТ],$J$8),NA()) -> 
F22: 13 | G22: 2012-05-13 | H22: =SUMIFS(данни[КИЛОМЕТРИ],данни[ДАТА],G22,данни[ДЕЙНОСТ],$H$8) -> 0 | I22: =IFERROR(AVERAGEIFS(данни[''''л/100 км''''],данни[ДАТА],G22,данни[ДЕЙНОСТ],$I$8),NA()) ->  | J22: =IFERROR(AVERAGEIFS(данни[¢/км],данни[ДАТА],G22,данни[ДЕЙНОСТ],$J$8),NA()) -> 
F23: 14 | G23: 2012-05-14 | H23: =SUMIFS(данни[КИЛОМЕТРИ],данни[ДАТА],G23,данни[ДЕЙНОСТ],$H$8) -> 0 | I23: =IFERROR(AVERAGEIFS(данни[''''л/100 км''''],данни[ДАТА],G23,данни[ДЕЙНОСТ],$I$8),NA()) ->  | J23: =IFERROR(AVERAGEIFS(данни[¢/км],данни[ДАТА],G23,данни[ДЕЙНОСТ],$J$8),NA()) -> 
F24: 15 | G24: 2012-05-15 | H24: =SUMIFS(данни[КИЛОМЕТРИ],данни[ДАТА],G24,данни[ДЕЙНОСТ],$H$8) -> 0 | I24: =IFERROR(AVERAGEIFS(данни[''''л/100 км''''],данни[ДАТА],G24,данни[ДЕЙНОСТ],$I$8),NA()) ->  | J24: =IFERROR(AVERAGEIFS(данни[¢/км],данни[ДАТА],G24,данни[ДЕЙНОСТ],$J$8),NA()) -> 
F25: 16 | G25: 2012-05-16 | H25: =SUMIFS(данни[КИЛОМЕТРИ],данни[ДАТА],G25,данни[ДЕЙНОСТ],$H$8) -> 0 | I25: =IFERROR(AVERAGEIFS(данни[''''л/100 км''''],данни[ДАТА],G25,данни[ДЕЙНОСТ],$I$8),NA()) ->  | J25: =IFERROR(AVERAGEIFS(данни[¢/км],данни[ДАТА],G25,данни[ДЕЙНОСТ],$J$8),NA()) -> 
F26: 17 | G26: 2012-05-17 | H26: =SUMIFS(данни[КИЛОМЕТРИ],данни[ДАТА],G26,данни[ДЕЙНОСТ],$H$8) -> 0 | I26: =IFERROR(AVERAGEIFS(данни[''''л/100 км''''],данни[ДАТА],G26,данни[ДЕЙНОСТ],$I$8),NA()) ->  | J26: =IFERROR(AVERAGEIFS(данни[¢/км],данни[ДАТА],G26,данни[ДЕЙНОСТ],$J$8),NA()) -> 
F27: 18 | G27: 2012-05-18 | H27: =SUMIFS(данни[КИЛОМЕТРИ],данни[ДАТА],G27,данни[ДЕЙНОСТ],$H$8) -> 0 | I27: =IFERROR(AVERAGEIFS(данни[''''л/100 км''''],данни[ДАТА],G27,данни[ДЕЙНОСТ],$I$8),NA()) ->  | J27: =IFERROR(AVERAGEIFS(данни[¢/км],данни[ДАТА],G27,данни[ДЕЙНОСТ],$J$8),NA()) -> 
F28: 19 | G28: 2012-05-19 | H28: =SUMIFS(данни[КИЛОМЕТРИ],данни[ДАТА],G28,данни[ДЕЙНОСТ],$H$8) -> 0 | I28: =IFERROR(AVERAGEIFS(данни[''''л/100 км''''],данни[ДАТА],G28,данни[ДЕЙНОСТ],$I$8),NA()) ->  | J28: =IFERROR(AVERAGEIFS(данни[¢/км],данни[ДАТА],G28,данни[ДЕЙНОСТ],$J$8),NA()) -> 
F29: 20 | G29: 2012-05-20 | H29: =SUMIFS(данни[КИЛОМЕТРИ],данни[ДАТА],G29,данни[ДЕЙНОСТ],$H$8) -> 0 | I29: =IFERROR(AVERAGEIFS(данни[''''л/100 км''''],данни[ДАТА],G29,данни[ДЕЙНОСТ],$I$8),NA()) ->  | J29: =IFERROR(AVERAGEIFS(данни[¢/км],данни[ДАТА],G29,данни[ДЕЙНОСТ],$J$8),NA()) -> 
F30: 21 | G30: 2012-05-21 | H30: =SUMIFS(данни[КИЛОМЕТРИ],данни[ДАТА],G30,данни[ДЕЙНОСТ],$H$8) -> 0 | I30: =IFERROR(AVERAGEIFS(данни[''''л/100 км''''],данни[ДАТА],G30,данни[ДЕЙНОСТ],$I$8),NA()) ->  | J30: =IFERROR(AVERAGEIFS(данни[¢/км],данни[ДАТА],G30,данни[ДЕЙНОСТ],$J$8),NA()) -> 
F31: 22 | G31: 2012-05-22 | H31: =SUMIFS(данни[КИЛОМЕТРИ],данни[ДАТА],G31,данни[ДЕЙНОСТ],$H$8) -> 0 | I31: =IFERROR(AVERAGEIFS(данни[''''л/100 км''''],данни[ДАТА],G31,данни[ДЕЙНОСТ],$I$8),NA()) ->  | J31: =IFERROR(AVERAGEIFS(данни[¢/км],данни[ДАТА],G31,данни[ДЕЙНОСТ],$J$8),NA()) -> 
F32: 23 | G32: 2012-05-23 | H32: =SUMIFS(данни[КИЛОМЕТРИ],данни[ДАТА],G32,данни[ДЕЙНОСТ],$H$8) -> 0 | I32: =IFERROR(AVERAGEIFS(данни[''''л/100 км''''],данни[ДАТА],G32,данни[ДЕЙНОСТ],$I$8),NA()) ->  | J32: =IFERROR(AVERAGEIFS(данни[¢/км],данни[ДАТА],G32,данни[ДЕЙНОСТ],$J$8),NA()) -> 
F33: 24 | G33: 2012-05-24 | H33: =SUMIFS(данни[КИЛОМЕТРИ],данни[ДАТА],G33,данни[ДЕЙНОСТ],$H$8) -> 0 | I33: =IFERROR(AVERAGEIFS(данни[''''л/100 км''''],данни[ДАТА],G33,данни[ДЕЙНОСТ],$I$8),NA()) ->  | J33: =IFERROR(AVERAGEIFS(данни[¢/км],данни[ДАТА],G33,данни[ДЕЙНОСТ],$J$8),NA()) -> 
F34: 25 | G34: 2012-05-25 | H34: =SUMIFS(данни[КИЛОМЕТРИ],данни[ДАТА],G34,данни[ДЕЙНОСТ],$H$8) -> 0 | I34: =IFERROR(AVERAGEIFS(данни[''''л/100 км''''],данни[ДАТА],G34,данни[ДЕЙНОСТ],$I$8),NA()) ->  | J34: =IFERROR(AVERAGEIFS(данни[¢/км],данни[ДАТА],G34,данни[ДЕЙНОСТ],$J$8),NA()) -> 
F35: 26 | G35: 2012-05-26 | H35: =SUMIFS(данни[КИЛОМЕТРИ],данни[ДАТА],G35,данни[ДЕЙНОСТ],$H$8) -> 0 | I35: =IFERROR(AVERAGEIFS(данни[''''л/100 км''''],данни[ДАТА],G35,данни[ДЕЙНОСТ],$I$8),NA()) ->  | J35: =IFERROR(AVERAGEIFS(данни[¢/км],данни[ДАТА],G35,данни[ДЕЙНОСТ],$J$8),NA()) -> 
F36: 27 | G36: 2012-05-27 | H36: =SUMIFS(данни[КИЛОМЕТРИ],данни[ДАТА],G36,данни[ДЕЙНОСТ],$H$8) -> 0 | I36: =IFERROR(AVERAGEIFS(данни[''''л/100 км''''],данни[ДАТА],G36,данни[ДЕЙНОСТ],$I$8),NA()) ->  | J36: =IFERROR(AVERAGEIFS(данни[¢/км],данни[ДАТА],G36,данни[ДЕЙНОСТ],$J$8),NA()) -> 
F37: 28 | G37: 2012-05-28 | H37: =SUMIFS(данни[КИЛОМЕТРИ],данни[ДАТА],G37,данни[ДЕЙНОСТ],$H$8) -> 0 | I37: =IFERROR(AVERAGEIFS(данни[''''л/100 км''''],данни[ДАТА],G37,данни[ДЕЙНОСТ],$I$8),NA()) ->  | J37: =IFERROR(AVERAGEIFS(данни[¢/км],данни[ДАТА],G37,данни[ДЕЙНОСТ],$J$8),NA()) -> 
F38: 29 | G38: 2012-05-29 | H38: =SUMIFS(данни[КИЛОМЕТРИ],данни[ДАТА],G38,данни[ДЕЙНОСТ],$H$8) -> 0 | I38: =IFERROR(AVERAGEIFS(данни[''''л/100 км''''],данни[ДАТА],G38,данни[ДЕЙНОСТ],$I$8),NA()) ->  | J38: =IFERROR(AVERAGEIFS(данни[¢/км],данни[ДАТА],G38,данни[ДЕЙНОСТ],$J$8),NA()) -> 
F39: 30 | G39: 2012-05-30 | H39: =SUMIFS(данни[КИЛОМЕТРИ],данни[ДАТА],G39,данни[ДЕЙНОСТ],$H$8) -> 0 | I39: =IFERROR(AVERAGEIFS(данни[''''л/100 км''''],данни[ДАТА],G39,данни[ДЕЙНОСТ],$I$8),NA()) ->  | J39: =IFERROR(AVERAGEIFS(данни[¢/км],данни[ДАТА],G39,данни[ДЕЙНОСТ],$J$8),NA()) -> 
F40: 31 | G40: 2012-05-31 | H40: =SUMIFS(данни[КИЛОМЕТРИ],данни[ДАТА],G40,данни[ДЕЙНОСТ],$H$8) -> 0 | I40: =IFERROR(AVERAGEIFS(данни[''''л/100 км''''],данни[ДАТА],G40,данни[ДЕЙНОСТ],$I$8),NA()) ->  | J40: =IFERROR(AVERAGEIFS(данни[¢/км],данни[ДАТА],G40,данни[ДЕЙНОСТ],$J$8),NA()) -> 
F41: 32 | G41: 2012-06-01 | H41: =SUMIFS(данни[КИЛОМЕТРИ],данни[ДАТА],G41,данни[ДЕЙНОСТ],$H$8) -> 0 | I41: =IFERROR(AVERAGEIFS(данни[''''л/100 км''''],данни[ДАТА],G41,данни[ДЕЙНОСТ],$I$8),NA()) ->  | J41: =IFERROR(AVERAGEIFS(данни[¢/км],данни[ДАТА],G41,данни[ДЕЙНОСТ],$J$8),NA()) -> 
F42: 33 | G42: 2012-06-02 | H42: =SUMIFS(данни[КИЛОМЕТРИ],данни[ДАТА],G42,данни[ДЕЙНОСТ],$H$8) -> 0 | I42: =IFERROR(AVERAGEIFS(данни[''''л/100 км''''],данни[ДАТА],G42,данни[ДЕЙНОСТ],$I$8),NA()) ->  | J42: =IFERROR(AVERAGEIFS(данни[¢/км],данни[ДАТА],G42,данни[ДЕЙНОСТ],$J$8),NA()) -> 
F43: 34 | G43: =G42+1 -> 2012-06-03 | H43: =SUMIFS(данни[КИЛОМЕТРИ],данни[ДАТА],G43,данни[ДЕЙНОСТ],$H$8) -> 0 | I43: =IFERROR(AVERAGEIFS(данни[''''л/100 км''''],данни[ДАТА],G43,данни[ДЕЙНОСТ],$I$8),NA()) ->  | J43: =IFERROR(AVERAGEIFS(данни[¢/км],данни[ДАТА],G43,данни[ДЕЙНОСТ],$J$8),NA()) -> 
F44: 35 | G44: 2012-06-04 | H44: =SUMIFS(данни[КИЛОМЕТРИ],данни[ДАТА],G44,данни[ДЕЙНОСТ],$H$8) -> 0 | I44: =IFERROR(AVERAGEIFS(данни[''''л/100 км''''],данни[ДАТА],G44,данни[ДЕЙНОСТ],$I$8),NA()) ->  | J44: =IFERROR(AVERAGEIFS(данни[¢/км],данни[ДАТА],G44,данни[ДЕЙНОСТ],$J$8),NA()) -> 
F45: 36 | G45: 2012-06-05 | H45: =SUMIFS(данни[КИЛОМЕТРИ],данни[ДАТА],G45,данни[ДЕЙНОСТ],$H$8) -> 0 | I45: =IFERROR(AVERAGEIFS(данни[''''л/100 км''''],данни[ДАТА],G45,данни[ДЕЙНОСТ],$I$8),NA()) ->  | J45: =IFERROR(AVERAGEIFS(данни[¢/км],данни[ДАТА],G45,данни[ДЕЙНОСТ],$J$8),NA()) -> 
F46: 37 | G46: 2012-06-06 | H46: =SUMIFS(данни[КИЛОМЕТРИ],данни[ДАТА],G46,данни[ДЕЙНОСТ],$H$8) -> 0 | I46: =IFERROR(AVERAGEIFS(данни[''''л/100 км''''],данни[ДАТА],G46,данни[ДЕЙНОСТ],$I$8),NA()) ->  | J46: =IFERROR(AVERAGEIFS(данни[¢/км],данни[ДАТА],G46,данни[ДЕЙНОСТ],$J$8),NA()) -> 
F47: 38 | G47: 2012-06-07 | H47: =SUMIFS(данни[КИЛОМЕТРИ],данни[ДАТА],G47,данни[ДЕЙНОСТ],$H$8) -> 0 | I47: =IFERROR(AVERAGEIFS(данни[''''л/100 км''''],данни[ДАТА],G47,данни[ДЕЙНОСТ],$I$8),NA()) ->  | J47: =IFERROR(AVERAGEIFS(данни[¢/км],данни[ДАТА],G47,данни[ДЕЙНОСТ],$J$8),NA()) -> 
F48: 39 | G48: 2012-06-08 | H48: =SUMIFS(данни[КИЛОМЕТРИ],данни[ДАТА],G48,данни[ДЕЙНОСТ],$H$8) -> 0 | I48: =IFERROR(AVERAGEIFS(данни[''''л/100 км''''],данни[ДАТА],G48,данни[ДЕЙНОСТ],$I$8),NA()) ->  | J48: =IFERROR(AVERAGEIFS(данни[¢/км],данни[ДАТА],G48,данни[ДЕЙНОСТ],$J$8),NA()) -> 
F49: 40 | G49: 2012-06-09 | H49: =SUMIFS(данни[КИЛОМЕТРИ],данни[ДАТА],G49,данни[ДЕЙНОСТ],$H$8) -> 0 | I49: =IFERROR(AVERAGEIFS(данни[''''л/100 км''''],данни[ДАТА],G49,данни[ДЕЙНОСТ],$I$8),NA()) ->  | J49: =IFERROR(AVERAGEIFS(данни[¢/км],данни[ДАТА],G49,данни[ДЕЙНОСТ],$J$8),NA()) -> 
F50: 41 | G50: 2012-06-10 | H50: =SUMIFS(данни[КИЛОМЕТРИ],данни[ДАТА],G50,данни[ДЕЙНОСТ],$H$8) -> 0 | I50: =IFERROR(AVERAGEIFS(данни[''''л/100 км''''],данни[ДАТА],G50,данни[ДЕЙНОСТ],$I$8),NA()) ->  | J50: =IFERROR(AVERAGEIFS(данни[¢/км],данни[ДАТА],G50,данни[ДЕЙНОСТ],$J$8),NA()) -> 
F51: 42 | G51: 2012-06-11 | H51: =SUMIFS(данни[КИЛОМЕТРИ],данни[ДАТА],G51,данни[ДЕЙНОСТ],$H$8) -> 0 | I51: =IFERROR(AVERAGEIFS(данни[''''л/100 км''''],данни[ДАТА],G51,данни[ДЕЙНОСТ],$I$8),NA()) ->  | J51: =IFERROR(AVERAGEIFS(данни[¢/км],данни[ДАТА],G51,данни[ДЕЙНОСТ],$J$8),NA()) -> 
F52: 43 | G52: 2012-06-12 | H52: =SUMIFS(данни[КИЛОМЕТРИ],данни[ДАТА],G52,данни[ДЕЙНОСТ],$H$8) -> 0 | I52: =IFERROR(AVERAGEIFS(данни[''''л/100 км''''],данни[ДАТА],G52,данни[ДЕЙНОСТ],$I$8),NA()) ->  | J52: =IFERROR(AVERAGEIFS(данни[¢/км],данни[ДАТА],G52,данни[ДЕЙНОСТ],$J$8),NA()) -> 
F53: 44 | G53: 2012-06-13 | H53: =SUMIFS(данни[КИЛОМЕТРИ],данни[ДАТА],G53,данни[ДЕЙНОСТ],$H$8) -> 0 | I53: =IFERROR(AVERAGEIFS(данни[''''л/100 км''''],данни[ДАТА],G53,данни[ДЕЙНОСТ],$I$8),NA()) ->  | J53: =IFERROR(AVERAGEIFS(данни[¢/км],данни[ДАТА],G53,данни[ДЕЙНОСТ],$J$8),NA()) -> 
F54: 45 | G54: 2012-06-14 | H54: =SUMIFS(данни[КИЛОМЕТРИ],данни[ДАТА],G54,данни[ДЕЙНОСТ],$H$8) -> 0 | I54: =IFERROR(AVERAGEIFS(данни[''''л/100 км''''],данни[ДАТА],G54,данни[ДЕЙНОСТ],$I$8),NA()) ->  | J54: =IFERROR(AVERAGEIFS(данни[¢/км],данни[ДАТА],G54,данни[ДЕЙНОСТ],$J$8),NA()) -> 
F55: 46 | G55: 2012-06-15 | H55: =SUMIFS(данни[КИЛОМЕТРИ],данни[ДАТА],G55,данни[ДЕЙНОСТ],$H$8) -> 0 | I55: =IFERROR(AVERAGEIFS(данни[''''л/100 км''''],данни[ДАТА],G55,данни[ДЕЙНОСТ],$I$8),NA()) ->  | J55: =IFERROR(AVERAGEIFS(данни[¢/км],данни[ДАТА],G55,данни[ДЕЙНОСТ],$J$8),NA()) -> 
F56: 47 | G56: 2012-06-16 | H56: =SUMIFS(данни[КИЛОМЕТРИ],данни[ДАТА],G56,данни[ДЕЙНОСТ],$H$8) -> 0 | I56: =IFERROR(AVERAGEIFS(данни[''''л/100 км''''],данни[ДАТА],G56,данни[ДЕЙНОСТ],$I$8),NA()) ->  | J56: =IFERROR(AVERAGEIFS(данни[¢/км],данни[ДАТА],G56,данни[ДЕЙНОСТ],$J$8),NA()) -> 
F57: 48 | G57: 2012-06-17 | H57: =SUMIFS(данни[КИЛОМЕТРИ],данни[ДАТА],G57,данни[ДЕЙНОСТ],$H$8) -> 0 | I57: =IFERROR(AVERAGEIFS(данни[''''л/100 км''''],данни[ДАТА],G57,данни[ДЕЙНОСТ],$I$8),NA()) ->  | J57: =IFERROR(AVERAGEIFS(данни[¢/км],данни[ДАТА],G57,данни[ДЕЙНОСТ],$J$8),NA()) -> 
F58: 49 | G58: 2012-06-18 | H58: =SUMIFS(данни[КИЛОМЕТРИ],данни[ДАТА],G58,данни[ДЕЙНОСТ],$H$8) -> 0 | I58: =IFERROR(AVERAGEIFS(данни[''''л/100 км''''],данни[ДАТА],G58,данни[ДЕЙНОСТ],$I$8),NA()) ->  | J58: =IFERROR(AVERAGEIFS(данни[¢/км],данни[ДАТА],G58,данни[ДЕЙНОСТ],$J$8),NA()) -> 
F59: 50 | G59: 2012-06-19 | H59: =SUMIFS(данни[КИЛОМЕТРИ],данни[ДАТА],G59,данни[ДЕЙНОСТ],$H$8) -> 0 | I59: =IFERROR(AVERAGEIFS(данни[''''л/100 км''''],данни[ДАТА],G59,данни[ДЕЙНОСТ],$I$8),NA()) ->  | J59: =IFERROR(AVERAGEIFS(данни[¢/км],данни[ДАТА],G59,данни[ДЕЙНОСТ],$J$8),NA()) -> 
F60: 51 | G60: 2012-06-20 | H60: =SUMIFS(данни[КИЛОМЕТРИ],данни[ДАТА],G60,данни[ДЕЙНОСТ],$H$8) -> 0 | I60: =IFERROR(AVERAGEIFS(данни[''''л/100 км''''],данни[ДАТА],G60,данни[ДЕЙНОСТ],$I$8),NA()) ->  | J60: =IFERROR(AVERAGEIFS(данни[¢/км],данни[ДАТА],G60,данни[ДЕЙНОСТ],$J$8),NA()) -> 
F61: 52 | G61: 2012-06-21 | H61: =SUMIFS(данни[КИЛОМЕТРИ],данни[ДАТА],G61,данни[ДЕЙНОСТ],$H$8) -> 0 | I61: =IFERROR(AVERAGEIFS(данни[''''л/100 км''''],данни[ДАТА],G61,данни[ДЕЙНОСТ],$I$8),NA()) ->  | J61: =IFERROR(AVERAGEIFS(данни[¢/км],данни[ДАТА],G61,данни[ДЕЙНОСТ],$J$8),NA()) -> 
F62: 53 | G62: 2012-06-22 | H62: =SUMIFS(данни[КИЛОМЕТРИ],данни[ДАТА],G62,данни[ДЕЙНОСТ],$H$8) -> 0 | I62: =IFERROR(AVERAGEIFS(данни[''''л/100 км''''],данни[ДАТА],G62,данни[ДЕЙНОСТ],$I$8),NA()) ->  | J62: =IFERROR(AVERAGEIFS(данни[¢/км],данни[ДАТА],G62,данни[ДЕЙНОСТ],$J$8),NA()) -> 
F63: 54 | G63: 2012-06-23 | H63: =SUMIFS(данни[КИЛОМЕТРИ],данни[ДАТА],G63,данни[ДЕЙНОСТ],$H$8) -> 0 | I63: =IFERROR(AVERAGEIFS(данни[''''л/100 км''''],данни[ДАТА],G63,данни[ДЕЙНОСТ],$I$8),NA()) ->  | J63: =IFERROR(AVERAGEIFS(данни[¢/км],данни[ДАТА],G63,данни[ДЕЙНОСТ],$J$8),NA()) -> 
F64: 55 | G64: 2012-06-24 | H64: =SUMIFS(данни[КИЛОМЕТРИ],данни[ДАТА],G64,данни[ДЕЙНОСТ],$H$8) -> 0 | I64: =IFERROR(AVERAGEIFS(данни[''''л/100 км''''],данни[ДАТА],G64,данни[ДЕЙНОСТ],$I$8),NA()) ->  | J64: =IFERROR(AVERAGEIFS(данни[¢/км],данни[ДАТА],G64,данни[ДЕЙНОСТ],$J$8),NA()) -> 
F65: 56 | G65: 2012-06-25 | H65: =SUMIFS(данни[КИЛОМЕТРИ],данни[ДАТА],G65,данни[ДЕЙНОСТ],$H$8) -> 0 | I65: =IFERROR(AVERAGEIFS(данни[''''л/100 км''''],данни[ДАТА],G65,данни[ДЕЙНОСТ],$I$8),NA()) ->  | J65: =IFERROR(AVERAGEIFS(данни[¢/км],данни[ДАТА],G65,данни[ДЕЙНОСТ],$J$8),NA()) -> 
F66: 57 | G66: 2012-06-26 | H66: =SUMIFS(данни[КИЛОМЕТРИ],данни[ДАТА],G66,данни[ДЕЙНОСТ],$H$8) -> 0 | I66: =IFERROR(AVERAGEIFS(данни[''''л/100 км''''],данни[ДАТА],G66,данни[ДЕЙНОСТ],$I$8),NA()) ->  | J66: =IFERROR(AVERAGEIFS(данни[¢/км],данни[ДАТА],G66,данни[ДЕЙНОСТ],$J$8),NA()) -> 
F67: 58 | G67: 2012-06-27 | H67: =SUMIFS(данни[КИЛОМЕТРИ],данни[ДАТА],G67,данни[ДЕЙНОСТ],$H$8) -> 0 | I67: =IFERROR(AVERAGEIFS(данни[''''л/100 км''''],данни[ДАТА],G67,данни[ДЕЙНОСТ],$I$8),NA()) ->  | J67: =IFERROR(AVERAGEIFS(данни[¢/км],данни[ДАТА],G67,данни[ДЕЙНОСТ],$J$8),NA()) -> 
F68: 59 | G68: 2012-06-28 | H68: =SUMIFS(данни[КИЛОМЕТРИ],данни[ДАТА],G68,данни[ДЕЙНОСТ],$H$8) -> 0 | I68: =IFERROR(AVERAGEIFS(данни[''''л/100 км''''],данни[ДАТА],G68,данни[ДЕЙНОСТ],$I$8),NA()) ->  | J68: =IFERROR(AVERAGEIFS(данни[¢/км],данни[ДАТА],G68,данни[ДЕЙНОСТ],$J$8),NA()) -> 
F69: 60 | G69: 2012-06-29 | H69: =SUMIFS(данни[КИЛОМЕТРИ],данни[ДАТА],G69,данни[ДЕЙНОСТ],$H$8) -> 0 | I69: =IFERROR(AVERAGEIFS(данни[''''л/100 км''''],данни[ДАТА],G69,данни[ДЕЙНОСТ],$I$8),NA()) ->  | J69: =IFERROR(AVERAGEIFS(данни[¢/км],данни[ДАТА],G69,данни[ДЕЙНОСТ],$J$8),NA()) -> 
